Workbook

Sheet Objectives of Exercise
B2: Demonstrate Fundamental Principles of Corporate Model | K2: Subject | L2: Excel Exercise File | M2: Video | N2: Page Reference
C3: Use of historic balance sheet | K3: Overview of Corporate Model Issues | L3: Building Basic Corporate Model
C4: Cash balance and debt balance schedules before the financial statements | K4: Exercise Part 1: Depreciation, Debt and P&L | L4: Building Basic Corporate Model
C5: Cash flow waterfall in cash flow statement | K5: Exercise Part 2: Cash Flow and Balance Sheet | L5: Building Basic Corporate Model
C6: Structuring of model with modules | K6: WC and Fixed Debt Exercise Overview | L6: WC Corporate Exercise
C7: Balance Sheet at end of model as output | K7: WC and Fixed Debt Exercise Exercise | L7: WC Corporate Exercise
C8: Introduction to corporate model issues | K8: Model with History - Overview | L8: Corporate Model with History
K9: Model with History - Switches | L9: Corporate Model with History
B10: Depreciation and Cash Flow | K10: Model with History - Assumptions | L10: Corporate Model with History
C11: Calculation of EBITDA and Capital Expenditures, Given | K11: Model with History - Working | L11: Corporate Model with History
C12: Introduction to Alternative Depreciation Methods, Use Net Plant | K12: Model with History - Debt and Depreciation | L12: Corporate Model with History
C13: Connection of Cash flow and Debt Schedule | K13: Model with History - P&L and Balance Sheet | L13: Corporate Model with History
C14: Use of Opening Balance to avoid circularity | K14: Model with Industry Capacity | L14: Model with Industry Capacity
C15: Listing of Assumptions in the Debt Schedule and the Depreciation Schedule | K15: Model with Working Analysis Overview | L15: Model with Working Analysis
C16: Filling in numbers on profit and loss | K16: Model with Working Analysis | L16: Model with Working Analysis
K17: WC and Debt Exercise | L17: Model with WC and Debt
B18: Cash Flow and Balance Sheet | K18: Cash Flow Plug Exercise | L18: Cash Flow Plug
C19: Subtotals in cash flow | K19: Minimum Cash Balance | L19: Minimum Cash Balance
C20: Use of MAX for capping at zero
C21: Use of MIN for testing balance
C22: Use of MIN and MAX
C23: Finding closing balances for balance sheet
C24: Computing Equity balance
C25: Testing Balance sheet
B27: Cash Flow Plug Exercise
C28: Demonnstrates connection of cash flow and balance sheet
C29: Assumes that only cash balance or debt balance
C30: Simple balance sheet
B32: Model with History
B34: Model with Industry Capacity Analysis
B36: WC and Debt Exercise
C37: Another Corporate Expercise
C38: Indude Different Debt Issues in the Financing Analysis
C39: Minimum Cash Balance
C40: Working Capital
C41: Includes cash flow and balance sheet
C42: Includes structuring
C43: Minority Interest
B45: Model with Working Analysis

Sheet Basic Exercise Formulas
A2: Historic Financial Statements
B4: Historic Balance Sheet
C5: Assets
D6: Cash | F6: 20
D7: Gross Plant | F7: 600
D8: Accumulated Deprecation | F8: 200 | I8: Shift CNTL R to Copy to Right
D9: Net Plant | F9: =F7-F8 -> 400
D10: Total Assets | F10: =F9+F6 -> 420 | I10: Shift CNTL S to colour inputs
C12: Liabilites and Captial
D13: Debt | F13: 200
D14: Equity | F14: =F10-F13 -> 220
D15: Total Liabilities and Capital | F15: =SUM(F13:F14) -> 420
A17: Assumptions
B18: Operating
C19: EBITDA | G19: 70 | H19: 75 | I19: 80 | J19: 90 | K19: 100 | L19: 110 | M19: 160
C20: Capital Expenditures | G20: 20 | H20: 45 | I20: 70 | J20: 95 | K20: 120 | L20: 145 | M20: 170
B22: Tax and Depreciation
C23: Net Plant Depreciation Rate | G23: 0.05 | H23: 0.05 | I23: 0.05 | J23: 0.05 | K23: 0.05 | L23: 0.05 | M23: 0.05
C24: Tax Rate | G24: 0.3 | H24: 0.3 | I24: 0.3 | J24: 0.3 | K24: 0.3 | L24: 0.3 | M24: 0.3
B26: Financing
C27: Interest Rate on Cash Balance | G27: 0.02 | H27: 0.02 | I27: 0.02 | J27: 0.02 | K27: 0.02 | L27: 0.02 | M27: 0.02
C28: Interest Rate on Debt Balance | G28: 0.07 | H28: 0.07 | I28: 0.07 | J28: 0.07 | K28: 0.07 | L28: 0.07 | M28: 0.07
C29: Dividend Payout Ratio | G29: 0.6 | H29: 0.6 | I29: 0.6 | J29: 0.6 | K29: 0.6 | L29: 0.6 | M29: 0.6
A31: Depreciation Balance
B32: Opening Balance of Net Plant
B33: Add: Capital Expenditures
B34: Less: Depreciation from below
B35: Closing Balance
B37: Depreciation Rate
B38: Depreciation Expense on Opening Balance
A40: Debt and Cash Balance
B41: Debt Balance
C42: Opening Balance
C43: Add: New Debt Issued from cash flow
C44: Less: Debt Repaid
C45: Closing Balance
C47: Interest Rate
C48: Interest Expense on Opening Balance
B50: Cash Balance
C51: Opening Balance
C52: Add: New Cash Generated
C53: Less: Reduced Cash Balance from Positive Cash Flow
C54: Closing Balance
C56: Interest Rate
C57: Interest Income
C59: Min Cash Requirement
C60: Min Cash for Funding
A62: Profit and Loss Statement
B63: EBITDA
B64: Less: Depreciation
B65: EBIT
B66: Less: Interest Expense
B67: Add: Interest Income
B68: Earnings
A70: Cash Flow Statement
B71: EBITDA
B72: Less: Captial Expenditures
B73: Cash From Operations
B74: Less: Interest Expense
B75: Add: Interest Income
B76: Less: Dividends
B77: Net Cash Flow
B78: Add: Reduced Cash Balance when Cash is Negative
B79: Less: Reduced Debt Balance when Cash is Postitive
B80: Cash Flow after Reductions
B81: Less: Added Cash Balance when Cash is Postive
B82: Add: Added Debt Balance when Cash is Negative
B83: Final Cash Flow (Should be zero)
B85: Test
A87: Balance Sheet
B88: Equity Balance
C89: Opening Balance
C90: Add: Earnings
C91: Less: Dividends
C92: Closing Balance
B94: Assets
C95: Cash
C96: Net Plant
C97: Total Assets
B99: Liabilites and Captial
C100: Debt
C101: Equity
C102: Total Liabilities and Capital
C104: Difference
C105: Test
D107: ROIC
D108: ROE
D109: Debt/Capital
D110: Target

Sheet Basic Exercise Completed
A2: Assumptions
B4: Historic Balance Sheet
C5: Assets
D6: Cash | F6: 20
D7: Gross Plant | F7: 600
D8: Accumulated Deprecation | F8: 200
D9: Net Plant | F9: =F7-F8 -> 400
D10: Total Assets | F10: =F9+F6 -> 420 | I10: Shift CNTL S to colour inputs
C12: Liabilites and Captial
D13: Debt | F13: 200
D14: Equity | F14: =F10-F13 -> 220
D15: Total Liabilities and Capital | F15: =SUM(F13:F14) -> 420
B17: Operating
C18: EBITDA | G18: 100 | H18: 130 | I18: 160 | J18: 190 | K18: 220 | L18: 250 | M18: 280
C19: Capital Expenditures | G19: 20 | H19: 45 | I19: 70 | J19: 95 | K19: 120 | L19: 145 | M19: 170
B21: Tax and Depreciation
C22: Depreciation Rate | G22: 0.05 | H22: 0.05 | I22: 0.05 | J22: 0.05 | K22: 0.05 | L22: 0.05 | M22: 0.05
C23: Tax Rate | G23: 0.3 | H23: 0.3 | I23: 0.3 | J23: 0.3 | K23: 0.3 | L23: 0.3 | M23: 0.3
B25: Financing
C26: Interest Rate on Cash Balance | G26: 0.02 | H26: 0.02 | I26: 0.02 | J26: 0.02 | K26: 0.02 | L26: 0.02 | M26: 0.02
C27: Interest Rate on Debt Balance | G27: 0.07 | H27: 0.07 | I27: 0.07 | J27: 0.07 | K27: 0.07 | L27: 0.07 | M27: 0.07
C28: Dividend Payout Ratio | G28: 0.6 | H28: 0.6 | I28: 0.6 | J28: 0.6 | K28: 0.6 | L28: 0.6 | M28: 0.6
A30: Depreciation Balance
B31: Opening Balance | G31: =F34 -> 600 | H31: =G34 -> 620 | I31: 665 | J31: 735 | K31: 830 | L31: 950 | M31: 1095
B32: Add: Capital Expenditures | G32: =G19 -> 20 | H32: =H19 -> 45 | I32: 70 | J32: 95 | K32: 120 | L32: 145 | M32: 170
B33: Less: Retirements
B34: Closing Balance | F34: =F7 -> 600 | G34: =G31+G32-G33 -> 620 | H34: =H31+H32-H33 -> 665 | I34: 735 | J34: 830 | K34: 950 | L34: 1095 | M34: 1265
B36: Depreciation Rate | G36: =G22 -> 0.05 | H36: =H22 -> 0.05 | I36: 0.05 | J36: 0.05 | K36: 0.05 | L36: 0.05 | M36: 0.05
B37: Depreciation Expense | G37: =AVERAGE(G34,G31)*G36 -> 30.5 | H37: =AVERAGE(H34,H31)*H36 -> 32.125 | I37: 35 | J37: 39.125 | K37: 44.5 | L37: 51.125 | M37: 59
B39: Accumulated Deprecation | F39: =F8 -> 200 | G39: =F39+G37 -> 230.5 | H39: =G39+H37 -> 262.625 | I39: 297.625 | J39: 336.75 | K39: 381.25 | L39: 432.375 | M39: 491.375
B41: Net Plant | F41: =F34-F39 -> 400 | G41: =G34-G39 -> 389.5 | H41: 402.375 | I41: 437.375 | J41: 493.25 | K41: 568.75 | L41: 662.625 | M41: 773.625
A44: Debt and Cash Balance
B45: Debt Balance
C46: Opening Balance | G46: =F49 -> 200 | H46: =G49 -> 167.14 | I46: 145.38492 | J46: 134.2956978 | K46: 133.4209773 | L46: 133.4209773 | M46: 140.2685583
C47: Add: New Debt Issued | G47: =G83 -> 0 | H47: =H83 -> 0 | I47: 0 | J47: 0 | K47: 0 | L47: 6.847581028 | M47: 26.52751963
C48: Less: Debt Repaid | G48: =G80 -> 32.86 | H48: =H80 -> 21.75508 | I48: 11.08922224 | J48: 0.8747204627 | K48: 0 | L48: 0 | M48: 0
C49: Closing Balance | F49: =F13 -> 200 | G49: =G46+G47-G48 -> 167.14 | H49: =H46+H47-H48 -> 145.38492 | I49: 134.2956978 | J49: 133.4209773 | K49: 133.4209773 | L49: 140.2685583 | M49: 166.796078
C51: Interest Rate | G51: =G27 -> 0.07 | H51: =H27 -> 0.07 | I51: 0.07 | J51: 0.07 | K51: 0.07 | L51: 0.07 | M51: 0.07
C52: Interest Expense | G52: =G51*G46 -> 14 | H52: =H51*H46 -> 11.6998 | I52: 10.1769444 | J52: 9.400698843 | K52: 9.339468411 | L52: 9.339468411 | M52: 9.818799083
B54: Cash Balance
C55: Opening Balance | G55: =F58 -> 20 | H55: =G58 -> 20 | I55: 20 | J55: 20 | K55: 20 | L55: 11.12421264 | M55: 0
C56: Add: New Cash Generated | G56: =G82 -> 0 | H56: =H82 -> 0 | I56: 0 | J56: 0 | K56: 0 | L56: 0 | M56: 0
C57: Less: Cash Used | G57: =G79 -> 0 | H57: =H79 -> 0 | I57: 0 | J57: 0 | K57: 8.875787364 | L57: 11.12421264 | M57: 0
C58: Closing Balance | F58: =F6 -> 20 | G58: =G55+G56-G57 -> 20 | H58: =H55+H56-H57 -> 20 | I58: 20 | J58: 20 | K58: 11.12421264 | L58: 0 | M58: 0
C60: Interest Rate | G60: =G26 -> 0.02 | H60: =H26 -> 0.02 | I60: 0.02 | J60: 0.02 | K60: 0.02 | L60: 0.02 | M60: 0.02
C61: Interest Income | G61: =G60*G55 -> 0.4 | H61: =H60*H55 -> 0.4 | I61: 0.4 | J61: 0.4 | K61: 0.4 | L61: 0.2224842527 | M61: 0
A63: Profit and Loss Statement
B64: EBITDA | G64: =G18 -> 100 | H64: =H18 -> 130 | I64: 160 | J64: 190 | K64: 220 | L64: 250 | M64: 280
B65: Less: Depreciation | G65: =G37 -> 30.5 | H65: =H37 -> 32.125 | I65: 35 | J65: 39.125 | K65: 44.5 | L65: 51.125 | M65: 59
B66: EBIT | G66: =G64-G65 -> 69.5 | H66: =H64-H65 -> 97.875 | I66: 125 | J66: 150.875 | K66: 175.5 | L66: 198.875 | M66: 221
B67: Less: Interest Expense | G67: =G52 -> 14 | H67: =H52 -> 11.6998 | I67: 10.1769444 | J67: 9.400698843 | K67: 9.339468411 | L67: 9.339468411 | M67: 9.818799083
B68: Add: Interest Income | G68: =G61 -> 0.4 | H68: =H61 -> 0.4 | I68: 0.4 | J68: 0.4 | K68: 0.4 | L68: 0.2224842527 | M68: 0
B69: Earnings | G69: =G66-G67+G68 -> 55.9 | H69: =H66-H67+H68 -> 86.5752 | I69: 115.2230556 | J69: 141.8743012 | K69: 166.5605316 | L69: 189.7580158 | M69: 211.1812009
A71: Cash Flow Statement
B72: EBITDA | G72: =G64 -> 100 | H72: =H64 -> 130 | I72: 160 | J72: 190 | K72: 220 | L72: 250 | M72: 280
B73: Less: Captial Expenditures | G73: =G19 -> 20 | H73: =H19 -> 45 | I73: 70 | J73: 95 | K73: 120 | L73: 145 | M73: 170
B74: Cash From Operations | G74: =G72-G73 -> 80 | H74: =H72-H73 -> 85 | I74: 90 | J74: 95 | K74: 100 | L74: 105 | M74: 110
B75: Less: Interest Expense | G75: =G67 -> 14 | H75: =H67 -> 11.6998 | I75: 10.1769444 | J75: 9.400698843 | K75: 9.339468411 | L75: 9.339468411 | M75: 9.818799083
B76: Add: Interest Income | G76: =G68 -> 0.4 | H76: =H68 -> 0.4 | I76: 0.4 | J76: 0.4 | K76: 0.4 | L76: 0.2224842527 | M76: 0
B77: Less: Dividends | G77: =MAX(G69*G28,0) -> 33.54 | H77: =MAX(H69*H28,0) -> 51.94512 | I77: 69.13383336 | J77: 85.12458069 | K77: 99.93631895 | L77: 113.8548095 | M77: 126.7087206
B78: Net Cash Flow | G78: =G74-G75+G76-G77 -> 32.86 | H78: =H74-H75+H76-H77 -> 21.75508 | I78: 11.08922224 | J78: 0.8747204627 | K78: -8.875787364 | L78: -17.97179366 | M78: -26.52751963
B79: Add: Reduced Cash Balance when Cash is Negative | G79: =MIN(MAX(-G78,0),G55) -> 0 | H79: =MIN(MAX(-H78,0),H55) -> 0 | I79: 0 | J79: 0 | K79: 8.875787364 | L79: 11.12421264 | M79: 0
B80: Less: Reduced Debt Balance when Cash is Postitive | G80: =MIN(MAX(G78,0),G46) -> 32.86 | H80: =MIN(MAX(H78,0),H46) -> 21.75508 | I80: 11.08922224 | J80: 0.8747204627 | K80: 0 | L80: 0 | M80: 0
B81: Cash Flow after Reductions | G81: =G78+G79-G80 -> 0 | H81: =H78+H79-H80 -> 0 | I81: 0 | J81: 0 | K81: 0 | L81: -6.847581028 | M81: -26.52751963
B82: Less: Added Cash Balance when Cash is Postive | G82: =MAX(G81,0) -> 0 | H82: =MAX(H81,0) -> 0 | I82: 0 | J82: 0 | K82: 0 | L82: 0 | M82: 0
B83: Add: Added Debt Balance when Cash is Negative | G83: =MAX(-G81,0) -> 0 | H83: =MAX(-H81,0) -> 0 | I83: 0 | J83: 0 | K83: 0 | L83: 6.847581028 | M83: 26.52751963
B84: Final Cash Flow (Should be zero) | G84: =G81-G82+G83 -> 0 | H84: =H81-H82+H83 -> 0 | I84: 0 | J84: 0 | K84: 0 | L84: 0 | M84: 0
B86: Test | E86: =AND(G86:M86) -> TRUE | G86: =G84=0 -> TRUE | H86: =H84=0 -> TRUE | I86: TRUE | J86: TRUE | K86: TRUE | L86: TRUE | M86: TRUE
A88: Balance Sheet
B89: Equity Balance
C90: Opening Balance | G90: =F93 -> 220 | H90: =G93 -> 242.36 | I90: 276.99008 | J90: 323.0793022 | K90: 379.8290227 | L90: 446.4532353 | M90: 522.3564417
C91: Add: Earnings | G91: =G69 -> 55.9 | H91: =H69 -> 86.5752 | I91: 115.2230556 | J91: 141.8743012 | K91: 166.5605316 | L91: 189.7580158 | M91: 211.1812009
C92: Less: Dividends | G92: =G77 -> 33.54 | H92: =H77 -> 51.94512 | I92: 69.13383336 | J92: 85.12458069 | K92: 99.93631895 | L92: 113.8548095 | M92: 126.7087206
C93: Closing Balance | F93: =F14 -> 220 | G93: =G90+G91-G92 -> 242.36 | H93: =H90+H91-H92 -> 276.99008 | I93: 323.0793022 | J93: 379.8290227 | K93: 446.4532353 | L93: 522.3564417 | M93: 606.828922
B95: Assets
C96: Cash | F96: =F58 -> 20 | G96: =G58 -> 20 | H96: 20 | I96: 20 | J96: 20 | K96: 11.12421264 | L96: 0 | M96: 0
C97: Gross Plant | F97: =F34 -> 600 | G97: =G34 -> 620 | H97: 665 | I97: 735 | J97: 830 | K97: 950 | L97: 1095 | M97: 1265
C98: Accumulated Deprecation | F98: =F39 -> 200 | G98: =G39 -> 230.5 | H98: 262.625 | I98: 297.625 | J98: 336.75 | K98: 381.25 | L98: 432.375 | M98: 491.375
C99: Net Plant | F99: =F97-F98 -> 400 | G99: =G97-G98 -> 389.5 | H99: 402.375 | I99: 437.375 | J99: 493.25 | K99: 568.75 | L99: 662.625 | M99: 773.625
C100: Total Assets | F100: =F96+F99 -> 420 | G100: =G96+G99 -> 409.5 | H100: 422.375 | I100: 457.375 | J100: 513.25 | K100: 579.8742126 | L100: 662.625 | M100: 773.625
B102: Liabilites and Captial
C103: Debt | F103: =F49 -> 200 | G103: =G49 -> 167.14 | H103: 145.38492 | I103: 134.2956978 | J103: 133.4209773 | K103: 133.4209773 | L103: 140.2685583 | M103: 166.796078
C104: Equity | F104: =F93 -> 220 | G104: =G93 -> 242.36 | H104: 276.99008 | I104: 323.0793022 | J104: 379.8290227 | K104: 446.4532353 | L104: 522.3564417 | M104: 606.828922
C105: Total Liabilities and Capital | F105: =F103+F104 -> 420 | G105: =G103+G104 -> 409.5 | H105: 422.375 | I105: 457.375 | J105: 513.25 | K105: 579.8742126 | L105: 662.625 | M105: 773.625
C107: Difference | F107: =F105-F100 -> 0 | G107: =G105-G100 -> 0 | H107: 0 | I107: 0 | J107: 0 | K107: 0 | L107: 0 | M107: 0
C108: Test | E108: =AND(F108:M108) -> TRUE | F108: =F107=0 -> TRUE | G108: =G107=0 -> TRUE | H108: TRUE | I108: TRUE | J108: TRUE | K108: TRUE | L108: TRUE | M108: TRUE

Sheet Minimum Cash
A2: Assumptions
B4: Historic Balance Sheet
C5: Assets | F5: History
D6: Cash | F6: 20
D7: Gross Plant | F7: 600
D8: Accumulated Deprecation | F8: 200
D9: Net Plant | F9: =F7-F8 -> 400
D10: Total Assets | F10: =F9+F6 -> 420 | I10: Shift CNTL S to colour inputs
C12: Liabilites and Captial
D13: Debt | F13: 200
D14: Equity | F14: =F10-F13 -> 220
D15: Total Liabilities and Capital | F15: =SUM(F13:F14) -> 420
B17: Operating
C18: EBITDA | G18: 100 | H18: 130 | I18: 160 | J18: 190 | K18: 220 | L18: 250 | M18: 280
C19: Capital Expenditures | G19: 20 | H19: 45 | I19: 70 | J19: 95 | K19: 120 | L19: 145 | M19: 170
B21: Tax and Depreciation
C22: Depreciation Rate | G22: 0.05 | H22: 0.05 | I22: 0.05 | J22: 0.05 | K22: 0.05 | L22: 0.05 | M22: 0.05
C23: Tax Rate | G23: 0.3 | H23: 0.3 | I23: 0.3 | J23: 0.3 | K23: 0.3 | L23: 0.3 | M23: 0.3
B25: Financing
C26: Interest Rate on Cash Balance | G26: 0.02 | H26: 0.02 | I26: 0.02 | J26: 0.02 | K26: 0.02 | L26: 0.02 | M26: 0.02
C27: Interest Rate on Debt Balance | G27: 0.07 | H27: 0.07 | I27: 0.07 | J27: 0.07 | K27: 0.07 | L27: 0.07 | M27: 0.07
C28: Dividend Payout Ratio | G28: 0.6 | H28: 0.6 | I28: 0.6 | J28: 0.6 | K28: 0.6 | L28: 0.6 | M28: 0.6
C29: Minimum Cash Balance | G29: =G18*5% -> 5 | H29: =H18*5% -> 6.5 | I29: 8 | J29: 9.5 | K29: 11 | L29: 12.5 | M29: 14
A31: Depreciation Balance
B32: Opening Balance | G32: =F35 -> 600 | H32: =G35 -> 620 | I32: 665 | J32: 735 | K32: 830 | L32: 950 | M32: 1095
B33: Add: Capital Expenditures | G33: =G19 -> 20 | H33: =H19 -> 45 | I33: 70 | J33: 95 | K33: 120 | L33: 145 | M33: 170
B34: Less: Retirements
B35: Closing Balance | F35: =F7 -> 600 | G35: =G32+G33-G34 -> 620 | H35: =H32+H33-H34 -> 665 | I35: 735 | J35: 830 | K35: 950 | L35: 1095 | M35: 1265
B37: Depreciation Rate | G37: =G22 -> 0.05 | H37: =H22 -> 0.05 | I37: 0.05 | J37: 0.05 | K37: 0.05 | L37: 0.05 | M37: 0.05
B38: Depreciation Expense | G38: =AVERAGE(G35,G32)*G37 -> 30.5 | H38: =AVERAGE(H35,H32)*H37 -> 32.125 | I38: 35 | J38: 39.125 | K38: 44.5 | L38: 51.125 | M38: 59
B40: Accumulated Deprecation | F40: =F8 -> 200 | G40: =F40+G38 -> 230.5 | H40: =G40+H38 -> 262.625 | I40: 297.625 | J40: 336.75 | K40: 381.25 | L40: 432.375 | M40: 491.375
B42: Net Plant | F42: =F35-F40 -> 400 | G42: =G35-G40 -> 389.5 | H42: 402.375 | I42: 437.375 | J42: 493.25 | K42: 568.75 | L42: 662.625 | M42: 773.625
A45: Debt and Cash Balance
B46: Debt Balance
C47: Opening Balance | G47: =F50 -> 200 | H47: =G50 -> 167.14 | I47: 145.38492 | J47: 134.2956978 | K47: 133.4209773 | L47: 133.4209773 | M47: 152.7685583
C48: Add: New Debt Issued | G48: =G89 -> 0 | H48: =H89 -> 0 | I48: 0 | J48: 0 | K48: 0 | L48: 19.34758103 | M48: 28.27751963
C49: Less: Debt Repaid | G49: =G86 -> 32.86 | H49: =H86 -> 21.75508 | I49: 11.08922224 | J49: 0.8747204627 | K49: 0 | L49: 0 | M49: 0
C50: Closing Balance | F50: =F13 -> 200 | G50: =G47+G48-G49 -> 167.14 | H50: =H47+H48-H49 -> 145.38492 | I50: 134.2956978 | J50: 133.4209773 | K50: 133.4209773 | L50: 152.7685583 | M50: 181.046078
C52: Interest Rate | G52: =G27 -> 0.07 | H52: =H27 -> 0.07 | I52: 0.07 | J52: 0.07 | K52: 0.07 | L52: 0.07 | M52: 0.07
C53: Interest Expense | G53: =G52*G47 -> 14 | H53: =H52*H47 -> 11.6998 | I53: 10.1769444 | J53: 9.400698843 | K53: 9.339468411 | L53: 9.339468411 | M53: 10.69379908
B55: Cash Balance
C56: Opening Balance | G56: =F59 -> 20 | H56: =G59 -> 20 | I56: 20 | J56: 20 | K56: 20 | L56: 11.12421264 | M56: 12.5
C57: Add: New Cash Generated | G57: =G88+G83 -> 0 | H57: =H88+H83 -> 0 | I57: 0 | J57: 0 | K57: 0 | L57: 1.375787364 | M57: 1.5
C58: Less: Cash Used | G58: =G85 -> 0 | H58: =H85 -> 0 | I58: 0 | J58: 0 | K58: 8.875787364 | L58: 0 | M58: 0
C59: Closing Balance | F59: =F6 -> 20 | G59: =G56+G57-G58 -> 20 | H59: =H56+H57-H58 -> 20 | I59: 20 | J59: 20 | K59: 11.12421264 | L59: 12.5 | M59: 14
C61: Minimum Cash Balance | G61: =G29 -> 5 | H61: =H29 -> 6.5 | I61: 8 | J61: 9.5 | K61: 11 | L61: 12.5 | M61: 14
C62: Surplus Cash Aviable for Negative Cash Flow | G62: =MAX(G56-G61,0) -> 15 | H62: =MAX(H56-H61,0) -> 13.5 | I62: 12 | J62: 10.5 | K62: 9 | L62: 0 | M62: 0
C63: Required Additional Cash | G63: =MAX(G61-G56,0) -> 0 | H63: =MAX(H61-H56,0) -> 0 | I63: 0 | J63: 0 | K63: 0 | L63: 1.375787364 | M63: 1.5
C65: Interest Rate | G65: =G26 -> 0.02 | H65: =H26 -> 0.02 | I65: 0.02 | J65: 0.02 | K65: 0.02 | L65: 0.02 | M65: 0.02
C66: Interest Income | G66: =G65*G56 -> 0.4 | H66: =H65*H56 -> 0.4 | I66: 0.4 | J66: 0.4 | K66: 0.4 | L66: 0.2224842527 | M66: 0.25
A68: Profit and Loss Statement
B69: EBITDA | G69: =G18 -> 100 | H69: =H18 -> 130 | I69: 160 | J69: 190 | K69: 220 | L69: 250 | M69: 280
B70: Less: Depreciation | G70: =G38 -> 30.5 | H70: =H38 -> 32.125 | I70: 35 | J70: 39.125 | K70: 44.5 | L70: 51.125 | M70: 59
B71: EBIT | G71: =G69-G70 -> 69.5 | H71: =H69-H70 -> 97.875 | I71: 125 | J71: 150.875 | K71: 175.5 | L71: 198.875 | M71: 221
B72: Less: Interest Expense | G72: =G53 -> 14 | H72: =H53 -> 11.6998 | I72: 10.1769444 | J72: 9.400698843 | K72: 9.339468411 | L72: 9.339468411 | M72: 10.69379908
B73: Add: Interest Income | G73: =G66 -> 0.4 | H73: =H66 -> 0.4 | I73: 0.4 | J73: 0.4 | K73: 0.4 | L73: 0.2224842527 | M73: 0.25
B74: Earnings | G74: =G71-G72+G73 -> 55.9 | H74: =H71-H72+H73 -> 86.5752 | I74: 115.2230556 | J74: 141.8743012 | K74: 166.5605316 | L74: 189.7580158 | M74: 210.5562009
A76: Cash Flow Statement
B77: EBITDA | G77: =G69 -> 100 | H77: =H69 -> 130 | I77: 160 | J77: 190 | K77: 220 | L77: 250 | M77: 280
B78: Less: Captial Expenditures | G78: =G19 -> 20 | H78: =H19 -> 45 | I78: 70 | J78: 95 | K78: 120 | L78: 145 | M78: 170
B79: Cash From Operations | G79: =G77-G78 -> 80 | H79: =H77-H78 -> 85 | I79: 90 | J79: 95 | K79: 100 | L79: 105 | M79: 110
B80: Less: Interest Expense | G80: =G72 -> 14 | H80: =H72 -> 11.6998 | I80: 10.1769444 | J80: 9.400698843 | K80: 9.339468411 | L80: 9.339468411 | M80: 10.69379908
B81: Add: Interest Income | G81: =G73 -> 0.4 | H81: 0.4 | I81: 0.4 | J81: 0.4 | K81: 0.4 | L81: 0.2224842527 | M81: 0.25
B82: Less: Dividends | G82: =MAX(G74*G28,0) -> 33.54 | H82: =MAX(H74*H28,0) -> 51.94512 | I82: 69.13383336 | J82: 85.12458069 | K82: 99.93631895 | L82: 113.8548095 | M82: 126.3337206
B83: Less: Added Cash to Fund Minimum | G83: =G63 -> 0 | H83: =H63 -> 0 | I83: 0 | J83: 0 | K83: 0 | L83: 1.375787364 | M83: 1.5
B84: Net Cash Flow | G84: =G79-G80+G81-G82-G83 -> 32.86 | H84: =H79-H80+H81-H82-H83 -> 21.75508 | I84: 11.08922224 | J84: 0.8747204627 | K84: -8.875787364 | L84: -19.34758103 | M84: -28.27751963
B85: Add: Reduced Cash Balance when Cash is Negative | G85: =MIN(MAX(-G84,0),G62) -> 0 | H85: =MIN(MAX(-H84,0),H62) -> 0 | I85: 0 | J85: 0 | K85: 8.875787364 | L85: 0 | M85: 0
B86: Less: Reduced Debt Balance when Cash is Postitive | G86: =MIN(MAX(G84,0),G47) -> 32.86 | H86: =MIN(MAX(H84,0),H47) -> 21.75508 | I86: 11.08922224 | J86: 0.8747204627 | K86: 0 | L86: 0 | M86: 0
B87: Cash Flow after Reductions | G87: =G84+G85-G86 -> 0 | H87: =H84+H85-H86 -> 0 | I87: 0 | J87: 0 | K87: 0 | L87: -19.34758103 | M87: -28.27751963
B88: Less: Added Cash Balance when Cash is Postive | G88: =MAX(G87,0) -> 0 | H88: =MAX(H87,0) -> 0 | I88: 0 | J88: 0 | K88: 0 | L88: 0 | M88: 0
B89: Add: Added Debt Balance when Cash is Negative | G89: =MAX(-G87,0) -> 0 | H89: =MAX(-H87,0) -> 0 | I89: 0 | J89: 0 | K89: 0 | L89: 19.34758103 | M89: 28.27751963
B90: Final Cash Flow (Should be zero) | G90: =G87-G88+G89 -> 0 | H90: =H87-H88+H89 -> 0 | I90: 0 | J90: 0 | K90: 0 | L90: 0 | M90: 0
B92: Test | E92: =AND(G92:M92) -> TRUE | G92: =G90=0 -> TRUE | H92: =H90=0 -> TRUE | I92: TRUE | J92: TRUE | K92: TRUE | L92: TRUE | M92: TRUE
A94: Balance Sheet
B95: Equity Balance
C96: Opening Balance | G96: =F99 -> 220 | H96: =G99 -> 242.36 | I96: 276.99008 | J96: 323.0793022 | K96: 379.8290227 | L96: 446.4532353 | M96: 522.3564417
C97: Add: Earnings | G97: =G74 -> 55.9 | H97: =H74 -> 86.5752 | I97: 115.2230556 | J97: 141.8743012 | K97: 166.5605316 | L97: 189.7580158 | M97: 210.5562009
C98: Less: Dividends | G98: =G82 -> 33.54 | H98: =H82 -> 51.94512 | I98: 69.13383336 | J98: 85.12458069 | K98: 99.93631895 | L98: 113.8548095 | M98: 126.3337206
C99: Closing Balance | F99: =F14 -> 220 | G99: =G96+G97-G98 -> 242.36 | H99: =H96+H97-H98 -> 276.99008 | I99: 323.0793022 | J99: 379.8290227 | K99: 446.4532353 | L99: 522.3564417 | M99: 606.578922
B101: Assets
C102: Cash | F102: =F59 -> 20 | G102: =G59 -> 20 | H102: 20 | I102: 20 | J102: 20 | K102: 11.12421264 | L102: 12.5 | M102: 14
C103: Gross Plant | F103: =F35 -> 600 | G103: =G35 -> 620 | H103: 665 | I103: 735 | J103: 830 | K103: 950 | L103: 1095 | M103: 1265
C104: Accumulated Deprecation | F104: =F40 -> 200 | G104: =G40 -> 230.5 | H104: 262.625 | I104: 297.625 | J104: 336.75 | K104: 381.25 | L104: 432.375 | M104: 491.375
C105: Net Plant | F105: =F103-F104 -> 400 | G105: =G103-G104 -> 389.5 | H105: 402.375 | I105: 437.375 | J105: 493.25 | K105: 568.75 | L105: 662.625 | M105: 773.625
C106: Total Assets | F106: =F102+F105 -> 420 | G106: =G102+G105 -> 409.5 | H106: 422.375 | I106: 457.375 | J106: 513.25 | K106: 579.8742126 | L106: 675.125 | M106: 787.625
B108: Liabilites and Captial
C109: Debt | F109: =F50 -> 200 | G109: =G50 -> 167.14 | H109: 145.38492 | I109: 134.2956978 | J109: 133.4209773 | K109: 133.4209773 | L109: 152.7685583 | M109: 181.046078
C110: Equity | F110: =F99 -> 220 | G110: =G99 -> 242.36 | H110: 276.99008 | I110: 323.0793022 | J110: 379.8290227 | K110: 446.4532353 | L110: 522.3564417 | M110: 606.578922
C111: Total Liabilities and Capital | F111: =F109+F110 -> 420 | G111: =G109+G110 -> 409.5 | H111: 422.375 | I111: 457.375 | J111: 513.25 | K111: 579.8742126 | L111: 675.125 | M111: 787.625
C113: Difference | F113: =F111-F106 -> 0 | G113: =G111-G106 -> 0 | H113: 0 | I113: 0 | J113: 0 | K113: 0 | L113: 0 | M113: 0
C114: Test | E114: =AND(F114:M114) -> TRUE | F114: =F113=0 -> TRUE | G114: =G113=0 -> TRUE | H114: TRUE | I114: TRUE | J114: TRUE | K114: TRUE | L114: TRUE | M114: TRUE

Sheet Sheet2

Sheet Sheet3
